fUSD/lending_fUSD_20260605
["ID","MTS","AMOUNT","RATE_DAILY","PERIOD"]
[424119859,1780601481000,-500.0,0.00037863,11]
[424119850,1780601481000,-500.0,0.00037863,11]
[424119860,1780601481000,-500.0,0.00037863,11]
[424119851,1780601481000,-2923.68,0.00037863,11]
[424119854,1780601481000,-500.0,0.00037863,11]
[424119853,1780601481000,-500.0,0.00037863,11]
[424119856,1780601481000,-500.0,0.00037863,11]
[424119867,1780601481000,-500.0,0.00037863,11]
[424119873,1780601481000,-500.0,0.00037863,11]
[424119863,1780601481000,-3601.94,0.00037863,11]
[424119865,1780601481000,-500.0,0.00037863,11]
[424119862,1780601481000,-656.47,0.00037863,11]
[424119864,1780601481000,-500.0,0.00037863,11]
[424119869,1780601481000,-500.0,0.00037863,11]
[424119871,1780601481000,-500.0,0.00037863,11]
[424119868,1780601481000,-5497.17,0.00037863,11]
[424119870,1780601481000,-500.0,0.00037863,11]
[424119883,1780601481000,-500.0,0.00037863,11]
[424119884,1780601481000,-3130.72,0.00037863,11]
[424119872,1780601481000,-500.0,0.00037863,11]
[424119875,1780601481000,-2130.73,0.00037863,11]
[424119852,1780601481000,-500.0,0.00037863,11]
[424119866,1780601481000,-722.89,0.00037863,11]
[424119849,1780601481000,-500.0,0.00037863,11]
[424119829,1780601481000,-500.0,0.00037863,11]
[424119847,1780601481000,-3628.99,0.00037863,11]
[424119822,1780601481000,-500.0,0.00037863,11]
[424119823,1780601481000,-500.0,0.00037863,11]
[424119826,1780601481000,-500.0,0.00037863,11]
[424119821,1780601481000,-500.0,0.00037863,11]
[424119825,1780601481000,-7481.71,0.00037863,11]
[424119824,1780601481000,-500.0,0.00037863,11]
[424119827,1780601481000,-3863.44,0.00037863,11]
[424119878,1780601481000,-500.0,0.00037863,11]
[424119828,1780601481000,-597.33,0.00037863,11]
[424119830,1780601481000,-793.97,0.00037863,11]
[424119835,1780601481000,-2494.03,0.00037863,11]
[424119832,1780601481000,-500.0,0.00037863,11]
[424119848,1780601481000,-472.99618294,0.00037863,11]
[424119831,1780601481000,-500.0,0.00037863,11]
[424119834,1780601481000,-3298.28,0.00037863,11]
[424119838,1780601481000,-500.0,0.00037863,11]
[424119836,1780601481000,-500.0,0.00037863,11]
[424119837,1780601481000,-587.86,0.00037863,11]
[424119839,1780601481000,-500.0,0.00037863,11]
[424119843,1780601481000,-6291.69,0.00037863,11]
[424119841,1780601481000,-3101.67,0.00037863,11]
[424119844,1780601481000,-41097.1,0.00037863,11]
[424119840,1780601481000,-500.0,0.00037863,11]
[424119845,1780601481000,-4272.54,0.00037863,11]
[424119842,1780601481000,-2564.12,0.00037863,11]
[424119846,1780601481000,-959.65,0.00037863,11]
[424119833,1780601481000,-3691.76,0.00037863,11]
[424119882,1780601481000,-500.0,0.00037863,11]
[424119934,1780601481000,-4852.79,0.00037863,11]
[424119876,1780601481000,-500.0,0.00037863,11]
[424119910,1780601481000,-10062.37,0.00037863,11]
[424119912,1780601481000,-767.28,0.00037863,11]
[424119913,1780601481000,-500.0,0.00037863,11]
[424119922,1780601481000,-500.0,0.00037863,11]
[424119918,1780601481000,-6030.88,0.00037863,11]
[424119914,1780601481000,-3955.78,0.00037863,11]
[424119915,1780601481000,-500.0,0.00037863,11]
[424119919,1780601481000,-500.0,0.00037863,11]
[424119920,1780601481000,-3482.81,0.00037863,11]
[424119916,1780601481000,-3700.19,0.00037863,11]
[424119917,1780601481000,-500.0,0.00037863,11]
[424119923,1780601481000,-3164.55,0.00037863,11]
[424119921,1780601481000,-703.95,0.00037863,11]
[424119925,1780601481000,-712.64,0.00037863,11]
[424119926,1780601481000,-1667.72,0.00037863,11]
[424119933,1780601481000,-500.0,0.00037863,11]
[424119929,1780601481000,-1888.13,0.00037863,11]
[424119927,1780601481000,-500.0,0.00037863,11]
[424119932,1780601481000,-500.0,0.00037863,11]
[424119931,1780601481000,-500.0,0.00037863,11]
[424119928,1780601481000,-500.0,0.00037863,11]
[424119935,1780601481000,-500.0,0.00037863,11]
[424119938,1780601481000,-6615.41,0.00037863,11]
[424119936,1780601481000,-726.28,0.00037863,11]
[424119937,1780601481000,-556.89,0.00037863,11]
[424119880,1780601481000,-508.18,0.00037863,11]
[424119930,1780601481000,-500.0,0.00037863,11]
[424119911,1780601481000,-3206.05,0.00037863,11]
[424119924,1780601481000,-1219.17,0.00037863,2]
[424119906,1780601481000,-1186.26,0.00037863,11]
[424119879,1780601481000,-500.0,0.00037863,11]
[424119903,1780601481000,-6476.77,0.00037863,11]
[424119874,1780601481000,-160.84627702,0.00037863,11]
[424119877,1780601481000,-500.0,0.00037863,11]
[424119881,1780601481000,-4640.83,0.00037863,7]
[424119886,1780601481000,-2954.3,0.00037863,11]
[424119896,1780601481000,-3194.54,0.00037863,11]
[424119887,1780601481000,-500.0,0.00037863,11]
[424119885,1780601481000,-9003.1,0.00037863,11]
[424119890,1780601481000,-3247.99,0.00037863,11]
[424119891,1780601481000,-713.22,0.00037863,11]
[424119893,1780601481000,-4335.39,0.00037863,11]
[424119895,1780601481000,-4849.2,0.00037863,11]
[424119892,1780601481000,-500.0,0.00037863,11]
[424119889,1780601481000,-500.0,0.00037863,3]
[424119904,1780601481000,-708.12,0.00037863,11]
[424119907,1780601481000,-500.0,0.00037863,11]
[424119888,1780601481000,-500.0,0.00037863,11]
[424119900,1780601481000,-12962.22,0.00037863,11]
[424119905,1780601481000,-3506.05,0.00037863,11]
[424119902,1780601481000,-500.0,0.00037863,11]
[424119899,1780601481000,-500.0,0.00037863,11]
[424119901,1780601481000,-500.0,0.00037863,11]
[424119908,1780601481000,-4957.77,0.00037863,11]
[424119898,1780601481000,-500.0,0.00037863,11]
[424119909,1780601481000,-500.0,0.00037863,11]
[424119894,1780601481000,-500.0,0.00037863,11]
[424119897,1780601481000,-500.0,0.00037863,11]
[424119975,1780601482000,-500.0,0.00037863,11]
[424119979,1780601482000,-4437.46,0.00037863,11]
[424119981,1780601482000,-500.0,0.00037863,11]
[424119980,1780601482000,-500.0,0.00037863,11]
[424119972,1780601482000,-2027.44,0.00037863,11]
[424119971,1780601482000,-500.0,0.00037863,11]
[424119976,1780601482000,-500.0,0.00037863,11]
[424119974,1780601482000,-500.0,0.00037863,11]
[424119983,1780601482000,-500.0,0.00037863,11]
[424119973,1780601482000,-500.0,0.00037863,11]
[424119982,1780601482000,-3044.93,0.00037863,11]
[424119977,1780601482000,-3481.52,0.00037863,11]
[424119978,1780601482000,-3078.36,0.00037863,11]
[424119997,1780601482000,-500.0,0.00037863,2]
[424119988,1780601482000,-500.0,0.00037863,11]
[424119987,1780601482000,-500.0,0.00037863,11]
[424119986,1780601482000,-500.0,0.00037863,11]
[424119985,1780601482000,-747.82,0.00037863,11]
[424119995,1780601482000,-500.0,0.00037863,11]
[424119993,1780601482000,-3116.77,0.00037863,11]
[424119994,1780601482000,-500.0,0.00037863,11]
[424119989,1780601482000,-4633.15,0.00037863,11]
[424119992,1780601482000,-500.0,0.00037863,11]
[424119990,1780601482000,-500.0,0.00037863,11]
[424119996,1780601482000,-500.0,0.00037863,11]
[424119991,1780601482000,-567.95383882,0.00037863,11]
[424119939,1780601482000,-601.18,0.00037863,11]
[424119984,1780601482000,-3282.67,0.00037863,11]
[424119970,1780601482000,-574.4587125,0.00037863,11]
[424119941,1780601482000,-9202.56,0.00037863,11]
[424119961,1780601482000,-5007.02,0.00037863,11]
[424119940,1780601482000,-12140.75,0.00037863,11]
[424119945,1780601482000,-500.0,0.00037863,11]
[424119946,1780601482000,-500.0,0.00037863,11]
[424119943,1780601482000,-5563.16,0.00037863,11]
[424119942,1780601482000,-500.0,0.00037863,11]
[424119944,1780601482000,-500.0,0.00037863,11]
[424119948,1780601482000,-4537.95,0.00037863,11]
[424119959,1780601482000,-6570.12,0.00037863,11]
[424119958,1780601482000,-500.0,0.00037863,11]
[424119949,1780601482000,-500.0,0.00037863,11]
[424119947,1780601482000,-525.84,0.00037863,11]
[424119951,1780601482000,-500.0,0.00037863,11]
[424119950,1780601482000,-5875.4,0.00037863,11]
[424119969,1780601482000,-7766.08,0.00037863,11]
[424119954,1780601482000,-2505.4,0.00037863,11]
[424119953,1780601482000,-670.03,0.00037863,11]
[424119999,1780601482000,-6100.12,0.00037863,11]
[424119952,1780601482000,-3783.59,0.00037863,11]
[424119956,1780601482000,-9770.76,0.00037863,11]
[424119955,1780601482000,-13429.98,0.00037863,11]
[424119960,1780601482000,-500.0,0.00037863,11]
[424119962,1780601482000,-2459.84,0.00037863,11]
[424119963,1780601482000,-5423.05,0.00037863,11]
[424119964,1780601482000,-17039.12,0.00037863,11]
[424119965,1780601482000,-500.0,0.00037863,11]
[424119966,1780601482000,-500.0,0.00037863,2]
[424119968,1780601482000,-517.01,0.00037863,11]
[424119967,1780601482000,-500.0,0.00037863,11]
[424119957,1780601482000,-500.0,0.00037863,11]
[424120000,1780601482000,-500.0,0.00037863,11]
[424120031,1780601482000,-733.9640021,0.00037868,10]
[424120006,1780601482000,-3206.55,0.00037863,11]
[424120026,1780601482000,-7369.94,0.00037863,11]
[424120036,1780601482000,-500.0,0.0003787,2]
[424120038,1780601482000,-1000.0,0.0003787,2]
[424120039,1780601482000,-206.14689225,0.0003788,2]
[424120037,1780601482000,-1000.0,0.0003787,2]
[424120045,1780601482000,-44650.63,0.000379,2]
[424120041,1780601482000,-164.0,0.00037891,11]
[424120040,1780601482000,-865417.21447267,0.0003789,30]
[424120046,1780601482000,-44650.63,0.000379,2]
[424120047,1780601482000,-75809.38,0.000379,2]
[424120044,1780601482000,-4008.95,0.000379,2]
[424120043,1780601482000,-4008.95,0.000379,2]
[424120049,1780601482000,-997.84,0.000379,2]
[424120059,1780601482000,-210.48,0.000379,120]
[424120048,1780601482000,-75809.38,0.000379,2]
[424120051,1780601482000,-160.0,0.000379,2]
[424120057,1780601482000,-500.0,0.000379,14]
[424120055,1780601482000,-500.0,0.000379,14]
[424120052,1780601482000,-254.1,0.000379,2]
[424120054,1780601482000,-160.0,0.000379,20]
[424120050,1780601482000,-997.84,0.000379,2]
[424120056,1780601482000,-500.0,0.000379,14]
[424120058,1780601482000,-500.0,0.000379,14]
[424120053,1780601482000,-566.9,0.000379,120]
[424120060,1780601482000,-200.0,0.000379,2]
[424120061,1780601482000,-164.0,0.00037905,11]
[424120009,1780601482000,-500.0,0.00037863,11]
[424120027,1780601482000,-500.0,0.00037863,11]
[424120033,1780601482000,-500.0,0.0003787,2]
[424120042,1780601482000,-1592.0,0.00037891,11]
[424120032,1780601482000,-210.48,0.00037869,100]
[424119998,1780601482000,-4949.56,0.00037863,11]
[424120008,1780601482000,-528.67,0.00037863,11]
[424120010,1780601482000,-500.0,0.00037863,11]
[424120001,1780601482000,-500.0,0.00037863,11]
[424120007,1780601482000,-500.0,0.00037863,11]
[424120002,1780601482000,-500.0,0.00037863,11]
[424120003,1780601482000,-8589.49,0.00037863,11]
[424120004,1780601482000,-1544.44,0.00037863,2]
[424120005,1780601482000,-3898.57,0.00037863,11]
[424120011,1780601482000,-500.0,0.00037863,11]
[424120013,1780601482000,-30187.66,0.00037863,11]
[424120015,1780601482000,-500.0,0.00037863,11]
[424120018,1780601482000,-500.0,0.00037863,11]
[424120019,1780601482000,-1001.46,0.00037863,11]
[424120028,1780601482000,-500.0,0.00037863,11]
[424120017,1780601482000,-872.03,0.00037863,2]
[424120020,1780601482000,-500.0,0.00037863,11]
[424120029,1780601482000,-500.0,0.00037863,11]
[424120025,1780601482000,-500.0,0.00037863,11]
[424120034,1780601482000,-500.0,0.0003787,2]
[424120023,1780601482000,-5437.74,0.00037863,11]
[424120035,1780601482000,-1000.0,0.0003787,2]
[424120030,1780601482000,-150.0,0.00037864,120]
[424120021,1780601482000,-500.0,0.00037863,11]
[424120022,1780601482000,-500.0,0.00037863,11]
[424120012,1780601482000,-4819.14,0.00037863,11]
[424120016,1780601482000,-2031.04,0.00037863,11]
[424120014,1780601482000,-308.31668743,0.00037863,11]
[424120024,1780601482000,-500.0,0.00037863,11]
[424120104,1780601483000,-500.0,0.00037917,11]
[424120105,1780601483000,-500.0,0.00037917,11]
[424120099,1780601483000,-500.0,0.00037917,11]
[424120107,1780601483000,-557.8636272,0.00037917,11]
[424120098,1780601483000,-1492.75,0.00037917,11]
[424120106,1780601483000,-824.61,0.00037917,11]
[424120094,1780601483000,-660.86,0.00037917,11]
[424120091,1780601483000,-391.29790327,0.00037917,11]
[424120089,1780601483000,-511.09,0.00037917,11]
[424120102,1780601483000,-214.68406678,0.00037917,11]
[424120090,1780601483000,-500.0,0.00037917,11]
[424120097,1780601483000,-500.0,0.00037917,11]
[424120103,1780601483000,-500.0,0.00037917,11]
[424120113,1780601483000,-500.0,0.00037917,11]
[424120108,1780601483000,-500.0,0.00037917,11]
[424120112,1780601483000,-500.0,0.00037917,11]
[424120111,1780601483000,-500.0,0.00037917,11]
[424120110,1780601483000,-500.0,0.00037917,11]
[424120109,1780601483000,-500.0,0.00037917,11]
[424120119,1780601483000,-500.0,0.00037917,11]
[424120116,1780601483000,-526.23,0.00037917,11]
[424120114,1780601483000,-500.0,0.00037917,11]
[424120115,1780601483000,-500.0,0.00037917,11]
[424120117,1780601483000,-544.18,0.00037917,11]
[424120118,1780601483000,-500.0,0.00037917,11]
[424120096,1780601483000,-500.0,0.00037917,11]
[424120101,1780601483000,-500.0,0.00037917,11]
[424120088,1780601483000,-500.0,0.00037917,11]
[424120081,1780601483000,-500.0,0.00037917,11]
[424120092,1780601483000,-688.44,0.00037917,11]
[424120062,1780601483000,-1000.0,0.00037916,30]
[424120063,1780601483000,-630.74710949,0.00037916,11]
[424120064,1780601483000,-371.76382547,0.00037917,11]
[424120066,1780601483000,-500.0,0.00037917,11]
[424120068,1780601483000,-500.0,0.00037917,11]
[424120067,1780601483000,-500.0,0.00037917,11]
[424120069,1780601483000,-500.0,0.00037917,11]
[424120071,1780601483000,-413.40417831,0.00037917,11]
[424120070,1780601483000,-500.0,0.00037917,11]
[424120065,1780601483000,-500.0,0.00037917,11]
[424120073,1780601483000,-500.0,0.00037917,11]
[424120072,1780601483000,-500.0,0.00037917,11]
[424120083,1780601483000,-568.16,0.00037917,11]
[424120074,1780601483000,-198.79332275,0.00037917,11]
[424120121,1780601483000,-500.0,0.00037917,11]
[424120078,1780601483000,-500.0,0.00037917,11]
[424120082,1780601483000,-500.0,0.00037917,11]
[424120076,1780601483000,-500.0,0.00037917,11]
[424120080,1780601483000,-500.0,0.00037917,11]
[424120077,1780601483000,-500.0,0.00037917,11]
[424120075,1780601483000,-500.0,0.00037917,11]
[424120079,1780601483000,-500.0,0.00037917,11]
[424120084,1780601483000,-500.0,0.00037917,11]
[424120087,1780601483000,-500.0,0.00037917,11]
[424120086,1780601483000,-500.0,0.00037917,11]
[424120085,1780601483000,-616.25,0.00037917,11]
[424120095,1780601483000,-500.0,0.00037917,11]
[424120093,1780601483000,-500.0,0.00037917,11]
[424120131,1780601483000,-500.0,0.00037917,11]
[424120100,1780601483000,-500.0,0.00037917,11]
[424120132,1780601483000,-184.92827551,0.00037917,11]
[424120153,1780601483000,-327.28,0.00037917,11]
[424120156,1780601483000,-500.0,0.00037917,11]
[424120154,1780601483000,-500.0,0.00037917,11]
[424120158,1780601483000,-500.0,0.00037917,11]
[424120161,1780601483000,-500.0,0.00037917,11]
[424120160,1780601483000,-500.0,0.00037917,11]
[424120169,1780601483000,-500.0,0.00037917,11]
[424120168,1780601483000,-500.0,0.00037917,11]
[424120162,1780601483000,-500.0,0.00037917,11]
[424120166,1780601483000,-515.82203939,0.00037917,11]
[424120159,1780601483000,-834.84,0.00037917,11]
[424120167,1780601483000,-534.52,0.00037917,11]
[424120164,1780601483000,-380.70698386,0.00037917,11]
[424120155,1780601483000,-500.0,0.00037917,11]
[424120165,1780601483000,-500.0,0.00037917,11]
[424120171,1780601483000,-500.0,0.00037917,11]
[424120181,1780601483000,-542.6,0.00037917,11]
[424120182,1780601483000,-500.0,0.00037917,11]
[424120172,1780601483000,-590.71,0.00037917,11]
[424120174,1780601483000,-500.0,0.00037917,11]
[424120173,1780601483000,-500.0,0.00037917,11]
[424120178,1780601483000,-500.0,0.00037917,11]
[424120176,1780601483000,-500.0,0.00037917,11]
[424120180,1780601483000,-500.0,0.00037917,11]
[424120177,1780601483000,-810.46,0.00037917,11]
[424120175,1780601483000,-500.0,0.00037917,11]
[424120179,1780601483000,-500.0,0.00037917,11]
[424120120,1780601483000,-500.0,0.00037917,11]
[424120170,1780601483000,-500.0,0.00037917,11]
[424120152,1780601483000,-847.5,0.00037917,11]
[424120163,1780601483000,-500.0,0.00037917,11]
[424120151,1780601483000,-500.0,0.00037917,11]
[424120157,1780601483000,-500.0,0.00037917,11]
[424120124,1780601483000,-500.0,0.00037917,11]
[424120125,1780601483000,-500.0,0.00037917,11]
[424120122,1780601483000,-603.34,0.00037917,11]
[424120126,1780601483000,-500.0,0.00037917,11]
[424120127,1780601483000,-500.0,0.00037917,11]
[424120128,1780601483000,-500.0,0.00037917,11]
[424120130,1780601483000,-608.17,0.00037917,11]
[424120129,1780601483000,-500.0,0.00037917,11]
[424120133,1780601483000,-500.0,0.00037917,11]
[424120135,1780601483000,-500.0,0.00037917,11]
[424120134,1780601483000,-649.58,0.00037917,11]
[424120136,1780601483000,-500.0,0.00037917,11]
[424120138,1780601483000,-513.78,0.00037917,11]
[424120123,1780601483000,-197.27212204,0.00037917,11]
[424120146,1780601483000,-500.0,0.00037917,11]
[424120143,1780601483000,-500.0,0.00037917,11]
[424120149,1780601483000,-500.0,0.00037917,11]
[424120150,1780601483000,-500.0,0.00037917,11]
[424120148,1780601483000,-734.23,0.00037917,11]
[424120147,1780601483000,-608.41,0.00037917,11]
[424120142,1780601483000,-500.0,0.00037917,11]
[424120145,1780601483000,-500.0,0.00037917,11]
[424120137,1780601483000,-500.0,0.00037917,11]
[424120141,1780601483000,-500.0,0.00037917,11]
[424120140,1780601483000,-500.0,0.00037917,11]
[424120139,1780601483000,-589.82,0.00037917,11]
[424120144,1780601483000,-500.0,0.00037917,11]
[424120221,1780601484000,-500.0,0.00037917,11]
[424120222,1780601484000,-500.0,0.00037917,11]
[424120224,1780601484000,-500.0,0.00037917,11]
[424120229,1780601484000,-500.0,0.00037917,11]
[424120230,1780601484000,-637.68,0.00037917,11]
[424120238,1780601484000,-522.36,0.00037917,11]
[424120219,1780601484000,-500.0,0.00037917,11]
[424120218,1780601484000,-421.54,0.00037917,11]
[424120215,1780601484000,-938.89,0.00037917,11]
[424120216,1780601484000,-737.5,0.00037917,11]
[424120220,1780601484000,-500.0,0.00037917,11]
[424120217,1780601484000,-500.0,0.00037917,11]
[424120223,1780601484000,-500.0,0.00037917,11]
[424120231,1780601484000,-500.0,0.00037917,11]
[424120236,1780601484000,-500.0,0.00037917,11]
[424120227,1780601484000,-500.0,0.00037917,11]
[424120228,1780601484000,-500.0,0.00037917,11]
[424120226,1780601484000,-500.0,0.00037917,11]
[424120237,1780601484000,-500.0,0.00037917,11]
[424120240,1780601484000,-500.0,0.00037917,11]
[424120241,1780601484000,-500.0,0.00037917,11]
[424120244,1780601484000,-500.0,0.00037917,11]
[424120239,1780601484000,-500.0,0.00037917,11]
[424120242,1780601484000,-809.94,0.00037917,11]
[424120234,1780601484000,-500.0,0.00037917,11]
[424120243,1780601484000,-500.0,0.00037917,11]
[424120235,1780601484000,-500.0,0.00037917,11]
[424120213,1780601484000,-625.52,0.00037917,11]
[424120225,1780601484000,-549.6,0.00037917,11]
[424120214,1780601484000,-878.44,0.00037917,11]
[424120184,1780601484000,-500.0,0.00037917,11]
[424120206,1780601484000,-715.51,0.00037917,11]
[424120232,1780601484000,-563.67,0.00037917,11]
[424120183,1780601484000,-500.0,0.00037917,11]
[424120186,1780601484000,-500.0,0.00037917,11]
[424120187,1780601484000,-500.0,0.00037917,11]
[424120189,1780601484000,-500.0,0.00037917,11]
[424120192,1780601484000,-500.0,0.00037917,11]
[424120190,1780601484000,-500.0,0.00037917,11]
[424120188,1780601484000,-500.0,0.00037917,11]
[424120191,1780601484000,-500.0,0.00037917,11]
[424120185,1780601484000,-500.0,0.00037917,11]
[424120193,1780601484000,-500.0,0.00037917,11]
[424120195,1780601484000,-500.0,0.00037917,11]
[424120198,1780601484000,-500.0,0.00037917,11]
[424120212,1780601484000,-761.79,0.00037917,11]
[424120204,1780601484000,-545.11,0.00037917,11]
[424120194,1780601484000,-500.0,0.00037917,11]
[424120196,1780601484000,-631.12,0.00037917,11]
[424120201,1780601484000,-500.0,0.00037917,11]
[424120200,1780601484000,-500.0,0.00037917,11]
[424120199,1780601484000,-667.4,0.00037917,11]
[424120197,1780601484000,-500.0,0.00037917,11]
[424120202,1780601484000,-500.0,0.00037917,11]
[424120205,1780601484000,-500.0,0.00037917,11]
[424120211,1780601484000,-500.0,0.00037917,11]
[424120210,1780601484000,-550.11,0.00037917,11]
[424120209,1780601484000,-2661.47,0.00037917,11]
[424120207,1780601484000,-500.0,0.00037917,11]
[424120208,1780601484000,-3301.75,0.00037917,11]
[424120203,1780601484000,-500.0,0.00037917,11]
[424120246,1780601484000,-500.0,0.00037917,11]
[424120233,1780601484000,-500.0,0.00037917,11]
[424120249,1780601484000,-500.0,0.00037917,11]
[424120283,1780601484000,-808.02,0.00037917,11]
[424120281,1780601484000,-741.75,0.00037917,11]
[424120277,1780601484000,-675.05,0.00037917,11]
[424120280,1780601484000,-500.0,0.00037917,11]
[424120286,1780601484000,-542.45,0.00037917,11]
[424120285,1780601484000,-619.28,0.00037917,11]
[424120289,1780601484000,-500.0,0.00037917,11]
[424120284,1780601484000,-500.0,0.00037917,11]
[424120295,1780601484000,-500.0,0.00037917,11]
[424120288,1780601484000,-500.0,0.00037917,11]
[424120291,1780601484000,-2731.82,0.00037917,11]
[424120290,1780601484000,-491.77674655,0.00037917,11]
[424120287,1780601484000,-500.0,0.00037917,11]
[424120273,1780601484000,-642.11627123,0.00037917,11]
[424120294,1780601484000,-600.94,0.00037917,11]
[424120293,1780601484000,-929.56,0.00037917,11]
[424120296,1780601484000,-500.0,0.00037917,11]
[424120308,1780601484000,-500.0,0.00037917,11]
[424120298,1780601484000,-500.0,0.00037917,11]
[424120302,1780601484000,-500.0,0.00037917,11]
[424120297,1780601484000,-500.0,0.00037917,11]
[424120299,1780601484000,-500.0,0.00037917,11]
[424120303,1780601484000,-405.23159817,0.00037917,11]
[424120306,1780601484000,-266.44802237,0.00037917,11]
[424120300,1780601484000,-500.0,0.00037917,11]
[424120301,1780601484000,-500.0,0.00037917,11]
[424120304,1780601484000,-500.0,0.00037917,11]
[424120245,1780601484000,-500.0,0.00037917,11]
[424120292,1780601484000,-500.0,0.00037917,11]
[424120271,1780601484000,-500.0,0.00037917,11]
[424120307,1780601484000,-500.0,0.00037917,11]
[424120278,1780601484000,-4203.86,0.00037917,11]
[424120256,1780601484000,-500.0,0.00037917,11]
[424120251,1780601484000,-500.0,0.00037917,11]
[424120248,1780601484000,-500.0,0.00037917,11]
[424120257,1780601484000,-500.0,0.00037917,11]
[424120252,1780601484000,-646.81,0.00037917,11]
[424120247,1780601484000,-500.0,0.00037917,11]
[424120255,1780601484000,-500.0,0.00037917,11]
[424120305,1780601484000,-821.02,0.00037917,11]
[424120279,1780601484000,-500.0,0.00037917,11]
[424120253,1780601484000,-500.0,0.00037917,11]
[424120254,1780601484000,-500.0,0.00037917,11]
[424120258,1780601484000,-500.0,0.00037917,11]
[424120259,1780601484000,-500.0,0.00037917,11]
[424120261,1780601484000,-500.0,0.00037917,11]
[424120250,1780601484000,-500.0,0.00037917,11]
[424120269,1780601484000,-500.0,0.00037917,11]
[424120266,1780601484000,-500.0,0.00037917,11]
[424120275,1780601484000,-500.0,0.00037917,11]
[424120274,1780601484000,-500.0,0.00037917,11]
[424120276,1780601484000,-500.0,0.00037917,11]
[424120282,1780601484000,-500.0,0.00037917,11]
[424120267,1780601484000,-500.0,0.00037917,11]
[424120272,1780601484000,-500.0,0.00037917,11]
[424120262,1780601484000,-1470.71,0.00037917,11]
[424120265,1780601484000,-500.0,0.00037917,11]
[424120260,1780601484000,-500.0,0.00037917,11]
[424120270,1780601484000,-500.0,0.00037917,11]
[424120263,1780601484000,-538.96,0.00037917,11]
[424120268,1780601484000,-500.0,0.00037917,11]
[424120264,1780601484000,-500.0,0.00037917,11]
[424120351,1780601485000,-500.0,0.00037917,11]
[424120359,1780601485000,-560.56,0.00037917,11]
[424120360,1780601485000,-2951.02,0.00037917,11]
[424120358,1780601485000,-599.14,0.00037917,11]
[424120348,1780601485000,-500.0,0.00037917,11]
[424120338,1780601485000,-500.0,0.00037917,2]
[424120343,1780601485000,-500.0,0.00037917,11]
[424120339,1780601485000,-500.0,0.00037917,11]
[424120337,1780601485000,-500.0,0.00037917,11]
[424120346,1780601485000,-2635.06,0.00037917,11]
[424120344,1780601485000,-528.61,0.00037917,11]
[424120352,1780601485000,-4960.3,0.00037917,11]
[424120371,1780601485000,-500.0,0.00037917,11]
[424120349,1780601485000,-1000.0,0.00037917,11]
[424120353,1780601485000,-500.0,0.00037917,11]
[424120347,1780601485000,-500.0,0.00037917,11]